[Event "Early-Titled-Tuesday-Blitz-February-20-2024"]
[Site "Chess.com"]
[Date "2024.02.20"]
[Round "6"]
[White "Kotlyar_K"]
[Black "treadstone_71"]
[Result "1-0"]
[WhiteElo "2585"]
[BlackElo "2327"]
[TimeControl "180+1"]
[EndTime "9:10:30 PST"]
[Termination "Kotlyar_K won by resignation"]

1. e4 {[%clk 0:03:00.9]} 1... c5 {[%clk 0:02:59.2]} 2. Nf3 {[%clk 0:03:00.2]}
2... Nc6 {[%clk 0:02:59.5]} 3. d4 {[%clk 0:03:00.8]} 3... cxd4 {[%clk
0:03:00.4]} 4. Nxd4 {[%clk 0:03:01.4]} 4... Nf6 {[%clk 0:03:00.6]} 5. Nc3 {[%clk
0:03:02]} 5... d6 {[%clk 0:03:01.2]} 6. Bg5 {[%clk 0:02:53.9]} 6... e6 {[%clk
0:03:01.3]} 7. Qd2 {[%clk 0:02:51.7]} 7... a6 {[%clk 0:03:01.4]} 8. Be2 {[%clk
0:02:42.5]} 8... Bd7 {[%clk 0:02:59.9]} 9. Bh4 {[%clk 0:02:30.9]} 9... b5 {[%clk
0:02:43.4]} 10. f4 {[%clk 0:02:29.1]} 10... Nxe4 {[%clk 0:02:22.4]} 11. Nxe4
{[%clk 0:02:06.5]} 11... Qxh4+ {[%clk 0:02:21.8]} 12. g3 {[%clk 0:02:07]} 12...
Qd8 {[%clk 0:02:21.9]} 13. O-O-O {[%clk 0:02:05.2]} 13... d5 {[%clk 0:02:14.9]}
14. Ng5 {[%clk 0:02:01.2]} 14... Be7 {[%clk 0:02:06.8]} 15. Nxc6 {[%clk
0:01:48.2]} 15... Bxc6 {[%clk 0:02:06]} 16. Bd3 {[%clk 0:01:45.1]} 16... h6
{[%clk 0:01:06.8]} 17. Nf3 {[%clk 0:01:44.8]} 17... Bf6 {[%clk 0:00:56.8]} 18.
Rhe1 {[%clk 0:01:42.8]} 18... O-O {[%clk 0:00:52.4]} 19. Ne5 {[%clk 0:01:42.4]}
19... Qc7 {[%clk 0:00:49.4]} 20. g4 {[%clk 0:01:32.4]} 20... Rac8 {[%clk
0:00:28.4]} 21. g5 {[%clk 0:01:02.9]} 21... hxg5 {[%clk 0:00:29.3]} 22. fxg5
{[%clk 0:01:03.8]} 22... Bxe5 {[%clk 0:00:26.1]} 23. Kb1 {[%clk 0:01:02.1]}
23... g6 {[%clk 0:00:22.5]} 24. h4 {[%clk 0:01:01]} 24... d4 {[%clk 0:00:20.4]}
25. h5 {[%clk 0:01:00.6]} 25... Bf3 {[%clk 0:00:20.5]} 26. hxg6 {[%clk
0:01:00.9]} 26... Bxd1 {[%clk 0:00:17.1]} 27. gxf7+ {[%clk 0:00:57.6]} 27...
Rxf7 {[%clk 0:00:17]} 28. Qxd1 {[%clk 0:00:56.6]} 28... Rcf8 {[%clk 0:00:13.8]}
29. Qh5 {[%clk 0:00:53.4]} 29... Rg7 {[%clk 0:00:10.3]} 30. Rh1 {[%clk
0:00:48.8]} 30... Rf4 {[%clk 0:00:05.7]} 31. Bg6 {[%clk 0:00:45.1]} 31... Kf8
{[%clk 0:00:05.8]} 32. Qh8+ {[%clk 0:00:38.3]} 32... Ke7 {[%clk 0:00:06.2]} 33.
Qe8+ {[%clk 0:00:39.2]} 33... Kd6 {[%clk 0:00:06.5]} 34. Bd3 {[%clk 0:00:34.8]}
34... Rgf7 {[%clk 0:00:05.6]} 35. g6 {[%clk 0:00:33.7]} 35... Rg7 {[%clk
0:00:06]} 36. Qa8 {[%clk 0:00:32.9]} 36... Qc6 {[%clk 0:00:05.6]} 37. Qd8+
{[%clk 0:00:31.6]} 37... Rd7 {[%clk 0:00:05.9]} 38. Qb8+ {[%clk 0:00:13.5]}
38... Kd5 {[%clk 0:00:06.4]} 39. c4+ {[%clk 0:00:14]} 39... dxc3 {[%clk
0:00:06.1]} 40. Be4+ {[%clk 0:00:11.5]} 40... Rxe4 {[%clk 0:00:05.7]} 41. Rd1+
{[%clk 0:00:11.6]} 41... Kc5 {[%clk 0:00:06.2]} 42. Qa7+ {[%clk 0:00:10.9]}
42... Qb6 {[%clk 0:00:04]} 43. Qxd7 {[%clk 0:00:09.1]} 43... Qc6 {[%clk
0:00:01.1]} 44. Qd3 {[%clk 0:00:08.7]} 44... Kb6 {[%clk 0:00:01.4]} 45. Qd8+
{[%clk 0:00:07.7]} 45... Kb7 {[%clk 0:00:01.4]} 46. Rd7+ {[%clk 0:00:06.5]}
46... Bc7 {[%clk 0:00:02.3]} 47. Rxc7+ {[%clk 0:00:04.3]} 47... Qxc7 {[%clk
0:00:03.2]} 48. Qd1 {[%clk 0:00:03.4]} 48... Qc6 {[%clk 0:00:04.1]} 49. bxc3
{[%clk 0:00:03.2]} 49... Rc4 {[%clk 0:00:05]} 50. g7 {[%clk 0:00:03]} 50... Rxc3
{[%clk 0:00:05.9]} 51. g8=Q {[%clk 0:00:03.6]} 51... Qe4+ {[%clk 0:00:05.4]} 52.
Kb2 {[%clk 0:00:03.4]} 52... Rc2+ {[%clk 0:00:04.7]} 53. Qxc2 {[%clk 0:00:03.4]}
53... Qe5+ {[%clk 0:00:05.6]} 54. Qc3 {[%clk 0:00:03.7]} 54... Qe2+ {[%clk
0:00:05.7]} 55. Qc2 {[%clk 0:00:04.1]} 55... Qe5+ {[%clk 0:00:05.5]} 56. Kb1
{[%clk 0:00:04.6]} 56... Qe1+ {[%clk 0:00:05.5]} 57. Kb2 {[%clk 0:00:04.7]}
57... Qb4+ {[%clk 0:00:06.1]} 58. Ka1 {[%clk 0:00:04.1]} 58... Qe1+ {[%clk
0:00:05.6]} 59. Kb2 {[%clk 0:00:04.5]} 59... Qb4+ {[%clk 0:00:05.8]} 60. Qb3
{[%clk 0:00:05]} 60... Qd2+ {[%clk 0:00:06.1]} 61. Kb1 {[%clk 0:00:04.5]} 61...
Qe1+ {[%clk 0:00:06.1]} 62. Kc2 {[%clk 0:00:04.9]} 62... Qe2+ {[%clk 0:00:06.5]}
63. Kc3 {[%clk 0:00:05.5]} 63... Qe3+ {[%clk 0:00:05.4]} 64. Kb4 {[%clk
0:00:05.7]} 64... Qd4+ {[%clk 0:00:05.7]} 65. Ka3 {[%clk 0:00:06.1]} 65... Qc5+
{[%clk 0:00:05.7]} 66. Qb4 {[%clk 0:00:06.1]} 66... Qc1+ {[%clk 0:00:05.4]} 67.
Kb3 {[%clk 0:00:06.2]} 67... Qe3+ {[%clk 0:00:05.1]} 68. Qc3 {[%clk 0:00:05.8]}
68... Qb6 {[%clk 0:00:03.1]} 69. Qf7+ {[%clk 0:00:06]} 69... Kb8 {[%clk
0:00:03.6]} 70. Qe7 {[%clk 0:00:04.9]} 70... b4 {[%clk 0:00:02.3]} 71. Qexb4
{[%clk 0:00:04.7]} 1-0

[Event "Early-Titled-Tuesday-Blitz-February-20-2024"]
[Site "Chess.com"]
[Date "2024.02.20"]
[Round "6"]
[White "Rud_Makarian"]
[Black "ChessLover0108"]
[Result "0-1"]
[WhiteElo "3076"]
[BlackElo "2978"]
[TimeControl "180+1"]
[EndTime "9:10:32 PST"]
[Termination "ChessLover0108 won by resignation"]

1. d4 {[%clk 0:03:00.9]} 1... Nf6 {[%clk 0:02:59.1]} 2. c4 {[%clk 0:03:01.6]}
2... e6 {[%clk 0:02:58.5]} 3. Nf3 {[%clk 0:03:00.8]} 3... d5 {[%clk 0:02:56.8]}
4. g3 {[%clk 0:03:01.1]} 4... Bb4+ {[%clk 0:02:57.2]} 5. Bd2 {[%clk 0:03:01.1]}
5... Be7 {[%clk 0:02:58]} 6. Bg2 {[%clk 0:03:01.7]} 6... O-O {[%clk 0:02:58.7]}
7. Qc2 {[%clk 0:03:02.6]} 7... Nbd7 {[%clk 0:02:58.6]} 8. O-O {[%clk 0:03:03.5]}
8... c6 {[%clk 0:02:58.4]} 9. Bf4 {[%clk 0:03:04.2]} 9... b6 {[%clk 0:02:51.9]}
10. Nbd2 {[%clk 0:03:04.3]} 10... Ba6 {[%clk 0:02:36.6]} 11. Rfe1 {[%clk
0:03:04.5]} 11... c5 {[%clk 0:02:25.8]} 12. e4 {[%clk 0:03:04.6]} 12... cxd4
{[%clk 0:02:09.5]} 13. exd5 {[%clk 0:02:54.7]} 13... d3 {[%clk 0:02:07.6]} 14.
Qd1 {[%clk 0:02:12.7]} 14... exd5 {[%clk 0:02:02.8]} 15. Nd4 {[%clk 0:02:13.3]}
15... Bb7 {[%clk 0:01:53.5]} 16. N2b3 {[%clk 0:01:40]} 16... Bb4 {[%clk
0:01:21.4]} 17. Re3 {[%clk 0:01:32.8]} 17... Nc5 {[%clk 0:01:12.3]} 18. a3
{[%clk 0:01:20.3]} 18... dxc4 {[%clk 0:00:39.8]} 19. Bxb7 {[%clk 0:01:20.5]}
19... Nxb7 {[%clk 0:00:26.9]} 20. Nc6 {[%clk 0:00:52.4]} 20... Qd7 {[%clk
0:00:24]} 21. Nxb4 {[%clk 0:00:53]} 21... cxb3 {[%clk 0:00:15.7]} 22. Rxd3
{[%clk 0:00:50.4]} 22... Qh3 {[%clk 0:00:16.3]} 23. Qf1 {[%clk 0:00:34.4]} 23...
Qxf1+ {[%clk 0:00:07.9]} 24. Rxf1 {[%clk 0:00:35.3]} 24... Nc5 {[%clk
0:00:08.8]} 25. Re3 {[%clk 0:00:35.6]} 25... Rad8 {[%clk 0:00:06.5]} 26. Rfe1
{[%clk 0:00:24.9]} 26... h6 {[%clk 0:00:07]} 27. h4 {[%clk 0:00:23.4]} 27... Rd7
{[%clk 0:00:05]} 28. R1e2 {[%clk 0:00:20.6]} 28... a5 {[%clk 0:00:04.3]} 29. Nc6
{[%clk 0:00:19.6]} 29... Nd5 {[%clk 0:00:04.9]} 30. Rf3 {[%clk 0:00:14.1]} 30...
Rc8 {[%clk 0:00:05.3]} 31. Ne5 {[%clk 0:00:13.2]} 31... Re7 {[%clk 0:00:05.9]}
32. Kf1 {[%clk 0:00:09.8]} 32... Rce8 {[%clk 0:00:06.1]} 33. Rd2 {[%clk
0:00:09.1]} 33... Rxe5 {[%clk 0:00:05.8]} 34. Bxe5 {[%clk 0:00:09.2]} 34... Rxe5
{[%clk 0:00:06.7]} 35. Kg2 {[%clk 0:00:09.6]} 35... f6 {[%clk 0:00:05.6]} 36. g4
{[%clk 0:00:08.8]} 36... a4 {[%clk 0:00:05.6]} 37. Rf5 {[%clk 0:00:08.6]} 37...
Ne6 {[%clk 0:00:02]} 38. Rxe5 {[%clk 0:00:06]} 38... fxe5 {[%clk 0:00:02.9]} 39.
Kf3 {[%clk 0:00:06.5]} 39... Nd4+ {[%clk 0:00:03.5]} 40. Ke4 {[%clk 0:00:06.7]}
40... Nf6+ {[%clk 0:00:04.3]} 41. Kd3 {[%clk 0:00:05.2]} 41... Nxg4 {[%clk
0:00:04.9]} 42. f4 {[%clk 0:00:04.9]} 42... Ne6 {[%clk 0:00:03.3]} 43. fxe5
{[%clk 0:00:04.1]} 43... Nxe5+ {[%clk 0:00:04.2]} 44. Ke4 {[%clk 0:00:04.7]}
44... Nc4 {[%clk 0:00:04.1]} 45. Re2 {[%clk 0:00:04.4]} 45... Kf7 {[%clk
0:00:02.7]} 46. Rf2+ {[%clk 0:00:04.1]} 46... Ke7 {[%clk 0:00:02.7]} 47. Kd5
{[%clk 0:00:05]} 47... Ne3+ {[%clk 0:00:02.7]} 48. Kc6 {[%clk 0:00:04.9]} 48...
Nd4+ {[%clk 0:00:01.7]} 49. Kxb6 {[%clk 0:00:05.4]} 49... Kd6 {[%clk 0:00:02.4]}
50. Ka5 {[%clk 0:00:05.4]} 50... Kc5 {[%clk 0:00:02.7]} 51. Kxa4 {[%clk
0:00:05.9]} 51... Kc4 {[%clk 0:00:03.6]} 52. Rf7 {[%clk 0:00:05.8]} 52... Nd1
{[%clk 0:00:03.7]} 53. Rc7+ {[%clk 0:00:05.6]} 53... Kd3 {[%clk 0:00:04.3]} 54.
Rxg7 {[%clk 0:00:04.2]} 54... Nxb2+ {[%clk 0:00:04.7]} 55. Kb4 {[%clk
0:00:04.8]} 55... Nd1 {[%clk 0:00:05.5]} 56. Rg1 {[%clk 0:00:04]} 56... Ne3
{[%clk 0:00:04.4]} 57. a4 {[%clk 0:00:03.6]} 57... b2 {[%clk 0:00:04.7]} 58. a5
{[%clk 0:00:04.1]} 58... Nc6+ {[%clk 0:00:02.6]} 59. Kb5 {[%clk 0:00:03.2]}
59... Nxa5 {[%clk 0:00:03.2]} 60. Kxa5 {[%clk 0:00:03.8]} 60... Kc2 {[%clk
0:00:04.1]} 61. Kb5 {[%clk 0:00:02.7]} 61... b1=Q+ {[%clk 0:00:03.9]} 62. Rxb1
{[%clk 0:00:03.2]} 62... Kxb1 {[%clk 0:00:04.8]} 63. Kc5 {[%clk 0:00:04.1]}
63... Nf5 {[%clk 0:00:04.2]} 64. Kd5 {[%clk 0:00:03.3]} 64... Nxh4 {[%clk
0:00:04.5]} 65. Ke5 {[%clk 0:00:03.4]} 65... Ng6+ {[%clk 0:00:04.5]} 66. Kf5
{[%clk 0:00:03.5]} 66... h5 {[%clk 0:00:05.1]} 67. Kxg6 {[%clk 0:00:03.6]} 67...
h4 {[%clk 0:00:05.5]} 68. Kg5 {[%clk 0:00:04.5]} 68... h3 {[%clk 0:00:06.4]} 0-1

[Event "Early-Titled-Tuesday-Blitz-February-20-2024"]
[Site "Chess.com"]
[Date "2024.02.20"]
[Round "6"]
[White "VitaliyBernadskiy"]
[Black "Boundless_Strike"]
[Result "1-0"]
[WhiteElo "2878"]
[BlackElo "2638"]
[TimeControl "180+1"]
[EndTime "9:10:37 PST"]
[Termination "VitaliyBernadskiy won by checkmate"]

1. e4 {[%clk 0:03:00.9]} 1... d6 {[%clk 0:02:55.7]} 2. d4 {[%clk 0:02:57.5]}
2... Nf6 {[%clk 0:02:54.8]} 3. f3 {[%clk 0:02:57.5]} 3... c6 {[%clk 0:02:51.6]}
4. c4 {[%clk 0:02:57.1]} 4... e5 {[%clk 0:02:45.9]} 5. Ne2 {[%clk 0:02:55.5]}
5... Be7 {[%clk 0:02:43.8]} 6. Nbc3 {[%clk 0:02:55.2]} 6... O-O {[%clk
0:02:43.8]} 7. Be3 {[%clk 0:02:55.2]} 7... Qc7 {[%clk 0:02:43.9]} 8. Rc1 {[%clk
0:02:53.1]} 8... Nbd7 {[%clk 0:02:41.9]} 9. d5 {[%clk 0:02:51]} 9... a5 {[%clk
0:02:34.4]} 10. Ng3 {[%clk 0:02:50.9]} 10... Nc5 {[%clk 0:02:33.1]} 11. Be2
{[%clk 0:02:49]} 11... cxd5 {[%clk 0:02:21.6]} 12. cxd5 {[%clk 0:02:44.7]} 12...
Bd7 {[%clk 0:02:15.9]} 13. O-O {[%clk 0:02:42.2]} 13... Rfc8 {[%clk 0:02:07.9]}
14. Bb5 {[%clk 0:02:40.2]} 14... Bxb5 {[%clk 0:01:56.1]} 15. Nxb5 {[%clk
0:02:41.1]} 15... Qb6 {[%clk 0:01:55.2]} 16. a4 {[%clk 0:02:38.6]} 16... g6
{[%clk 0:01:51.1]} 17. Nh1 {[%clk 0:02:24.7]} 17... Nfd7 {[%clk 0:01:07.9]} 18.
Nf2 {[%clk 0:02:23.1]} 18... f5 {[%clk 0:01:02.8]} 19. exf5 {[%clk 0:02:15.6]}
19... gxf5 {[%clk 0:01:02.4]} 20. f4 {[%clk 0:02:15.9]} 20... exf4 {[%clk
0:00:52.3]} 21. Bd4 {[%clk 0:02:12.2]} 21... Bf6 {[%clk 0:00:48.2]} 22. Rc3
{[%clk 0:01:19.7]} 22... Bxd4 {[%clk 0:00:42.7]} 23. Qxd4 {[%clk 0:01:19.5]}
23... Ne4 {[%clk 0:00:39.9]} 24. Qxb6 {[%clk 0:00:53.6]} 24... Nxb6 {[%clk
0:00:37.2]} 25. Nxe4 {[%clk 0:00:53.9]} 25... fxe4 {[%clk 0:00:37.3]} 26. Rxf4
{[%clk 0:00:53.9]} 26... Nxd5 {[%clk 0:00:31.4]} 27. Rxc8+ {[%clk 0:00:42.2]}
27... Rxc8 {[%clk 0:00:30.9]} 28. Nxd6 {[%clk 0:00:37]} 28... Nxf4 {[%clk
0:00:18.6]} 29. Nxc8 {[%clk 0:00:36.9]} 29... Nd3 {[%clk 0:00:17.4]} 30. Nd6
{[%clk 0:00:29.9]} 30... e3 {[%clk 0:00:17.5]} 31. Kf1 {[%clk 0:00:28.7]} 31...
Nxb2 {[%clk 0:00:13.6]} 32. Nxb7 {[%clk 0:00:27.2]} 32... Nxa4 {[%clk
0:00:13.8]} 33. Nxa5 {[%clk 0:00:27.4]} 33... Nc3 {[%clk 0:00:14.1]} 34. Nc4
{[%clk 0:00:26.3]} 34... e2+ {[%clk 0:00:13.4]} 35. Kf2 {[%clk 0:00:25]} 35...
Kg7 {[%clk 0:00:13.2]} 36. Ne5 {[%clk 0:00:17.6]} 36... Kf6 {[%clk 0:00:10.9]}
37. Nf3 {[%clk 0:00:18]} 37... Kf5 {[%clk 0:00:08.6]} 38. Ke3 {[%clk 0:00:17.9]}
38... h5 {[%clk 0:00:07.3]} 39. Kd3 {[%clk 0:00:16.4]} 39... Nd5 {[%clk
0:00:06.6]} 40. Kxe2 {[%clk 0:00:16.6]} 40... Nf4+ {[%clk 0:00:07.1]} 41. Kf2
{[%clk 0:00:16.7]} 41... Kg4 {[%clk 0:00:07.3]} 42. Ne5+ {[%clk 0:00:15.1]}
42... Kf5 {[%clk 0:00:07.6]} 43. Nf3 {[%clk 0:00:15.4]} 43... Kg4 {[%clk
0:00:08.1]} 44. Nd4 {[%clk 0:00:15.2]} 44... h4 {[%clk 0:00:07.6]} 45. Ne2
{[%clk 0:00:09.2]} 45... Nd3+ {[%clk 0:00:07.5]} 46. Ke3 {[%clk 0:00:09.3]}
46... Ne1 {[%clk 0:00:07.4]} 47. h3+ {[%clk 0:00:08.4]} 47... Kg5 {[%clk
0:00:06.6]} 48. Nf4 {[%clk 0:00:05.6]} 48... Nc2+ {[%clk 0:00:05.4]} 49. Ke4
{[%clk 0:00:04.5]} 49... Ne1 {[%clk 0:00:04.9]} 50. Ke3 {[%clk 0:00:04.1]} 50...
Nc2+ {[%clk 0:00:05]} 51. Kf3 {[%clk 0:00:04.5]} 51... Ne1+ {[%clk 0:00:05.3]}
52. Ke4 {[%clk 0:00:04.3]} 52... Nc2 {[%clk 0:00:04.8]} 53. Ne6+ {[%clk
0:00:04.6]} 53... Kh5 {[%clk 0:00:03.7]} 54. Kf4 {[%clk 0:00:03.3]} 54... Ne1
{[%clk 0:00:02.6]} 55. Kf5 {[%clk 0:00:02.9]} 55... Nxg2 {[%clk 0:00:02.5]} 56.
Nd4 {[%clk 0:00:02.4]} 56... Ne1 {[%clk 0:00:02.2]} 57. Ke4 {[%clk 0:00:01.9]}
57... Ng2 {[%clk 0:00:01.5]} 58. Kf3 {[%clk 0:00:02.1]} 58... Ne1+ {[%clk
0:00:02.2]} 59. Ke2 {[%clk 0:00:02.3]} 59... Kg5 {[%clk 0:00:02.4]} 60. Kxe1
{[%clk 0:00:02.1]} 60... Kf4 {[%clk 0:00:03.3]} 61. Kf2 {[%clk 0:00:02.8]} 61...
Kg5 {[%clk 0:00:02.9]} 62. Nf3+ {[%clk 0:00:03.7]} 62... Kh5 {[%clk 0:00:03.1]}
63. Ke3 {[%clk 0:00:04.3]} 63... Kg6 {[%clk 0:00:03]} 64. Kf4 {[%clk 0:00:04.4]}
64... Kh6 {[%clk 0:00:03.8]} 65. Kg4 {[%clk 0:00:04.6]} 65... Kg6 {[%clk
0:00:04.3]} 66. Nxh4+ {[%clk 0:00:05.5]} 66... Kf6 {[%clk 0:00:04.7]} 67. Nf3
{[%clk 0:00:06.4]} 67... Kg6 {[%clk 0:00:05]} 68. h4 {[%clk 0:00:07.3]} 68...
Kh6 {[%clk 0:00:05.8]} 69. h5 {[%clk 0:00:08.2]} 69... Kg7 {[%clk 0:00:06.6]}
70. Ng5 {[%clk 0:00:08.7]} 70... Kh6 {[%clk 0:00:06.9]} 71. Ne6 {[%clk
0:00:09.1]} 71... Kh7 {[%clk 0:00:07.3]} 72. Kg5 {[%clk 0:00:09.8]} 72... Kh8
{[%clk 0:00:07.2]} 73. Kg6 {[%clk 0:00:10.3]} 73... Kg8 {[%clk 0:00:07.7]} 74.
Ng5 {[%clk 0:00:10.6]} 74... Kh8 {[%clk 0:00:08.1]} 75. h6 {[%clk 0:00:11.5]}
75... Kg8 {[%clk 0:00:08.8]} 76. h7+ {[%clk 0:00:11.7]} 76... Kh8 {[%clk
0:00:09.7]} 77. Nf7# {[%clk 0:00:12]} 1-0

[Event "Early-Titled-Tuesday-Blitz-February-20-2024"]
[Site "Chess.com"]
[Date "2024.02.20"]
[Round "6"]
[White "Mesa_1"]
[Black "Grischuk"]
[Result "0-1"]
[WhiteElo "2575"]
[BlackElo "3083"]
[TimeControl "180+1"]
[EndTime "9:10:40 PST"]
[Termination "Grischuk won on time"]

1. e4 {[%clk 0:03:00.9]} 1... e5 {[%clk 0:03:00]} 2. Nf3 {[%clk 0:02:58]} 2...
Nc6 {[%clk 0:03:00.4]} 3. Bb5 {[%clk 0:02:58.7]} 3... a6 {[%clk 0:02:59.9]} 4.
Ba4 {[%clk 0:02:59]} 4... Nf6 {[%clk 0:03:00.1]} 5. O-O {[%clk 0:02:59.7]} 5...
Be7 {[%clk 0:02:59.5]} 6. Re1 {[%clk 0:02:58.8]} 6... b5 {[%clk 0:02:59]} 7. Bb3
{[%clk 0:02:59.4]} 7... d6 {[%clk 0:02:59.7]} 8. c3 {[%clk 0:02:58.4]} 8... Rg8
{[%clk 0:02:59.3]} 9. a4 {[%clk 0:02:52.6]} 9... Bd7 {[%clk 0:02:40.9]} 10. Ng5
{[%clk 0:02:26.4]} 10... Rf8 {[%clk 0:02:39.4]} 11. d4 {[%clk 0:02:20.1]} 11...
h6 {[%clk 0:02:34.9]} 12. Nf3 {[%clk 0:02:18.3]} 12... Rh8 {[%clk 0:02:26.1]}
13. axb5 {[%clk 0:02:06.4]} 13... axb5 {[%clk 0:02:25.7]} 14. Rxa8 {[%clk
0:02:07.3]} 14... Qxa8 {[%clk 0:02:26.2]} 15. Na3 {[%clk 0:02:08.2]} 15... Qb7
{[%clk 0:02:19.3]} 16. Bd5 {[%clk 0:02:04]} 16... exd4 {[%clk 0:02:00.6]} 17.
Nxd4 {[%clk 0:01:54.7]} 17... Nxd5 {[%clk 0:01:56.9]} 18. exd5 {[%clk
0:01:55.6]} 18... Nxd4 {[%clk 0:01:21]} 19. Qxd4 {[%clk 0:01:56.5]} 19... Kf8
{[%clk 0:01:21.4]} 20. Nc2 {[%clk 0:01:54.6]} 20... Bf6 {[%clk 0:01:18.2]} 21.
Qd3 {[%clk 0:01:55.3]} 21... g6 {[%clk 0:01:11.9]} 22. Nb4 {[%clk 0:01:40.4]}
22... Kg7 {[%clk 0:01:07.7]} 23. Be3 {[%clk 0:01:37.1]} 23... Re8 {[%clk
0:01:03]} 24. Qd2 {[%clk 0:01:37.7]} 24... Kh7 {[%clk 0:00:47.5]} 25. h3 {[%clk
0:01:38]} 25... Qa8 {[%clk 0:00:42.6]} 26. Bd4 {[%clk 0:01:33.6]} 26... Rxe1+
{[%clk 0:00:41.9]} 27. Qxe1 {[%clk 0:01:34.5]} 27... Bxd4 {[%clk 0:00:35.9]} 28.
cxd4 {[%clk 0:01:35.4]} 28... Qd8 {[%clk 0:00:36.1]} 29. Qc3 {[%clk 0:01:31]}
29... Bc8 {[%clk 0:00:25.9]} 30. Qf3 {[%clk 0:00:59.8]} 30... Kg7 {[%clk
0:00:25.3]} 31. Nc6 {[%clk 0:01:00.1]} 31... Qg5 {[%clk 0:00:22.7]} 32. Kh2
{[%clk 0:00:48.8]} 32... h5 {[%clk 0:00:18.7]} 33. b4 {[%clk 0:00:46.7]} 33...
h4 {[%clk 0:00:17.5]} 34. Qe4 {[%clk 0:00:41.5]} 34... Bf5 {[%clk 0:00:16.6]}
35. Qf3 {[%clk 0:00:37.4]} 35... Qd2 {[%clk 0:00:12.8]} 36. Ne7 {[%clk
0:00:33.4]} 36... Bc2 {[%clk 0:00:07.5]} 37. Nc6 {[%clk 0:00:27.4]} 37... Bf5
{[%clk 0:00:06.6]} 38. Ne7 {[%clk 0:00:26.9]} 38... Bd7 {[%clk 0:00:03.2]} 39.
Nc6 {[%clk 0:00:17.8]} 39... Bxc6 {[%clk 0:00:02.6]} 40. dxc6 {[%clk 0:00:18.7]}
40... Qxd4 {[%clk 0:00:03.2]} 41. Qb3 {[%clk 0:00:13.4]} 41... Qxf2 {[%clk
0:00:02.5]} 42. Qc3+ {[%clk 0:00:12.5]} 42... Qf6 {[%clk 0:00:02.3]} 43. Qd3
{[%clk 0:00:12.2]} 43... Qe5+ {[%clk 0:00:02.7]} 44. Kh1 {[%clk 0:00:12.8]}
44... Qe1+ {[%clk 0:00:03.3]} 45. Kh2 {[%clk 0:00:13]} 45... Qe5+ {[%clk
0:00:04]} 46. Kh1 {[%clk 0:00:12.8]} 46... g5 {[%clk 0:00:04.9]} 47. Qd2 {[%clk
0:00:10.1]} 47... Kf6 {[%clk 0:00:03.7]} 48. Qf2+ {[%clk 0:00:10]} 48... Ke6
{[%clk 0:00:03.4]} 49. Qa7 {[%clk 0:00:09.8]} 49... Qe1+ {[%clk 0:00:03.2]} 50.
Kh2 {[%clk 0:00:09.9]} 50... Qe5+ {[%clk 0:00:04.1]} 51. Kh1 {[%clk 0:00:10]}
51... d5 {[%clk 0:00:04.6]} 52. Qb8 {[%clk 0:00:09.1]} 52... d4 {[%clk
0:00:04.4]} 53. Qe8+ {[%clk 0:00:08.8]} 53... Kd5 {[%clk 0:00:04.2]} 54. Qxf7+
{[%clk 0:00:09]} 54... Kxc6 {[%clk 0:00:04.6]} 55. Qg6+ {[%clk 0:00:08.8]} 55...
Kb7 {[%clk 0:00:04.2]} 56. Qd3 {[%clk 0:00:08.8]} 56... Qd5 {[%clk 0:00:04.4]}
57. Kg1 {[%clk 0:00:08.3]} 57... Kb6 {[%clk 0:00:04.5]} 58. Qg6+ {[%clk
0:00:08.3]} 58... Kb7 {[%clk 0:00:05]} 59. Qd3 {[%clk 0:00:08.5]} 59... Qe5
{[%clk 0:00:05.5]} 60. Qg6 {[%clk 0:00:06.4]} 60... Qe1+ {[%clk 0:00:05]} 61.
Kh2 {[%clk 0:00:06.8]} 61... Qg3+ {[%clk 0:00:05.6]} 62. Kh1 {[%clk 0:00:07.5]}
62... Qe1+ {[%clk 0:00:06.1]} 63. Kh2 {[%clk 0:00:07.6]} 63... Qe5+ {[%clk
0:00:06.2]} 64. Kh1 {[%clk 0:00:07.7]} 64... c5 {[%clk 0:00:02.4]} 65. bxc5
{[%clk 0:00:06.3]} 65... Qxc5 {[%clk 0:00:03.3]} 66. Qf7+ {[%clk 0:00:06.5]}
66... Kb6 {[%clk 0:00:03.8]} 67. Qe6+ {[%clk 0:00:06.9]} 67... Ka5 {[%clk
0:00:04.1]} 68. Qa2+ {[%clk 0:00:06.6]} 68... Kb6 {[%clk 0:00:03.4]} 69. Qe6+
{[%clk 0:00:06.8]} 69... Qc6 {[%clk 0:00:03.9]} 70. Qe5 {[%clk 0:00:06.8]} 70...
Qc1+ {[%clk 0:00:04.2]} 71. Qe1 {[%clk 0:00:05]} 71... Qxe1+ {[%clk 0:00:04.8]}
0-1